[Event "GCT Superbet Romania 2024"]
[Site "Bucharest"]
[Date "2024.06.27"]
[Round "2.1"]
[White "Nepomniachtchi, Ian"]
[Black "Gukesh D"]
[Result "1/2-1/2"]
[ECO "C64"]
[WhiteElo "2770"]
[BlackElo "2763"]
[Annotator "TA"]
[PlyCount "179"]
[EventDate "2024.06.24"]
[EventType "tourn"]
[EventCountry "ROU"]
[SourceTitle "playchess.com"]
[Source "ChessBase"]
[SourceQuality "1"]
[TimeControl "7200+30"]

{[%evp 83,179,2,5,5,6,6,53,49,49,44,81,31,31,33,62,68,58,41,77,17,20,23,26,0,0,0,8,0,8,0,8,0,8,8,8,8,18,8,33,9,16,16,16,16,16,9,16,16,16,16,16,15,15,8,16,8,8,3,8,0,8,8,8,8,8,8,8,8,18,8,8,8,8,8,24,24,24,24,26,24,24,8,8,8,8,8,8,8,8,0,8,0,8,0,8,0,8,0]} 1. e4 {[%emt 0:00:07]} e5 {[%emt 0:00:06]} 2. Nf3 {[%emt 0:00:06]} Nc6 {[%emt 0:00:04]} 3. Bb5 {[%emt 0:00:05]} a6 {[%emt 0:00:07]} 4. Ba4 {[%emt 0:00:06]} Bc5 {[%emt 0:00:06]} 5. O-O {[%emt 0:01:40]} Nge7 {[%emt 0:00:05]} 6. c3 {[%emt 0:00:13]} Ng6 {[%emt 0:00:15] 6...Ba7 is a critical line. C64: Ruy Lopez: Classical Defence (3...Bc5) except 4 0-0 Nf6.} 7. d4 {[%emt 0:00:09]} Ba7 {[%emt 0:00:05]} 8. Bg5 {[%emt 0:00:17]} f6 {[%emt 0:00:08]} 9. Be3 {[%emt 0:00:03]} O-O {[%emt 0:01:22]} 10. Re1 {[%emt 0:00:05]} Kh8 {[%emt 0:01:24]} 11. h3 {[%emt 0:00:13]} Nce7 {[%emt 0:02:31]} 12. Bb3 {[%emt 0:13:17]} d6 {[%emt 0:17:55]} 13. Nbd2 {[%emt 0:01:24]} exd4 $146 {[%emt 0:03:40]} ({Predecessor:} 13... Bd7 14. Nf1 c5 15. a4 Rc8 16. dxc5 dxc5 17. a5 Qc7 18. Bc4 Rcd8 19. N1d2 h6 {0-1 Hou,Y (2658)-Indjic,A (2607) Indjic-Hou Yifan Blitz 2021 (7)}) 14. Nxd4 {[%emt 0:17:44]} d5 {[%emt 0:01:20]} 15. Nc2 {[%emt 0:03:24]} Bxe3 {[%emt 0:27:42]} 16. Nxe3 {[%emt 0:01:02]} dxe4 {[%emt 0:00:07]} 17. Nxe4 {[%emt 0:00:39]} b6 {[%emt 0:03:36]} 18. Qc2 {[%emt 0:26:24]} Bb7 {[%emt 0:01:52]} 19. Rad1 {[%emt 0:03:26]} Qe8 {[%emt 0:01:40]} 20. c4 {[%emt 0:13:15]} Qc6 {[%emt 0:19:06]} 21. Nd5 {[%emt 0:04:48]} Nxd5 {[%emt 0:02:44]} 22. cxd5 {[%emt 0:00:06]} Qxc2 {[%emt 0:02:03]} 23. Bxc2 {[%emt 0:00:19]} Rad8 {[%emt 0:03:02]} 24. d6 {[%emt 0:01:35]} Bxe4 {[%emt 0:03:33]} 25. Bxe4 {[%emt 0:03:21]} Rxd6 {[%emt 0:00:47]} 26. Rxd6 {[%emt 0:00:07]} cxd6 {[%emt 0:00:03]} 27. Rc1 {[%emt 0:00:16]} Nf4 {[%emt 0:09:45]} 28. Rc6 {[%emt 0:02:49]} d5 {[%emt 0:00:21]} 29. Bf3 {[%emt 0:01:45]} Rb8 {[%emt 0:00:55]} 30. Rd6 {[%emt 0:00:13]} a5 {[%emt 0:07:55]} 31. b3 {[%emt 0:01:47]} f5 {[%emt 0:04:05]} 32. h4 {[%emt 0:02:41]} g6 {[%emt 0:04:06]} 33. g3 {[%emt 0:01:31]} Nd3 {[%emt 0:00:04]} 34. Rxd5 {[%emt 0:00:38]} Nb4 {[%emt 0:00:21]} 35. Rd2 {[%emt 0:02:24]} Rc8 {[%emt 0:00:11]} 36. a3 {[%emt 0:00:49]} Nc2 {[%emt 0:01:00]} 37. Rd6 {[%emt 0:03:03]} Rc3 {[%emt 0:02:41]} 38. Bd1 {[%emt 0:02:30]} Nxa3 {[%emt 0:00:54]} 39. Rxb6 {[%emt 0:02:24]} Rc1 {[%emt 0:00:05]} 40. Rd6 {[%emt 0:00:04]} Nb5 {[%emt 0:00:16]} 41. Rd8+ {[%emt 0:00:08]} Kg7 {[%emt 0:00:02]} 42. Kg2 {[%emt 0:00:23]} Nc3 {[%emt 0:00:05]} 43. Bf3 {[%emt 0:01:14]} a4 {[%emt 0:03:29]} 44. Rd7+ {[%emt 0:01:50]} Kh8 {[%emt 0:02:09]} (44... Kh6 $11 45. bxa4 Nxa4) 45. bxa4 $14 {[%emt 0:00:50]} Nxa4 {[%emt 0:00:06]} 46. h5 {[%emt 0:00:10]} Nc5 {[%emt 0:04:07]} 47. Re7 {[%emt 0:03:51]} (47. Rf7 $16 {h6 would now be deadly.} Kg8 48. Bd5 gxh5 49. Rxf5+ Kg7 50. Rxh5) 47... gxh5 $1 $14 {[%emt 0:04:21]} 48. Bxh5 {[%emt 0:00:54]} Nb3 {[%emt 0:01:19]} 49. Rd7 {[%emt 0:00:45]} Rc4 {[%emt 0:00:31]} 50. Bf7 {[%emt 0:00:47]} Rb4 {[%emt 0:00:24]} 51. Kh3 {[%emt 0:02:46]} (51. Bd5 $16) 51... f4 $11 {[%emt 0:00:47]} 52. g4 {[%emt 0:02:25]} Nc5 {[%emt 0:00:03]} 53. Rd8+ {[%emt 0:02:11]} Kg7 {[%emt 0:00:01]} 54. Bd5 {[%emt 0:00:12]} h6 {[%emt 0:01:30]} 55. Rg8+ {[%emt 0:01:30]} Kh7 {[%emt 0:00:13]} 56. Rf8 {[%emt 0:02:09]} Rd4 {[%emt 0:00:20]} 57. Rf5 {[%emt 0:00:44]} Nd3 {[%emt 0:00:49]} 58. Kg2 {[%emt 0:01:02]} Kg7 {[%emt 0:00:01]} 59. Kf3 {[%emt 0:01:16]} Ne1+ {[%emt 0:00:20]} 60. Ke2 {[%emt 0:00:02]} Nc2 {[%emt 0:00:44]} 61. Bb3 {[%emt 0:00:48]} Nb4 {[%emt 0:00:16]} 62. Bf7 {[%emt 0:01:05]} Nc6 {[%emt 0:00:41]} 63. Bh5 {[%emt 0:00:17]} Nd8 {[%emt 0:00:53]} 64. Kf1 {[%emt 0:03:46]} Rb4 {[%emt 0:00:42]} 65. Kg2 {[%emt 0:00:24]} Rd4 {[%emt 0:00:01]} 66. Ra5 {[%emt 0:02:23]} Ne6 {[%emt 0:00:32]} 67. Ra7+ {[%emt 0:00:56]} Kf6 {[%emt 0:00:03]} 68. Ra6 {[%emt 0:00:06]} Ke5 {[%emt 0:01:18]} 69. Ra5+ {[%emt 0:01:33]} Rd5 {[%emt 0:00:16]} 70. Ra8 {[%emt 0:00:23]} Kf6 {[%emt 0:00:42]} 71. Ra6 {[%emt 0:00:41]} Ke7 {[%emt 0:00:22]} 72. Bg6 {[%emt 0:00:24]} Rg5 {[%emt 0:00:29]} 73. Bf5 {[%emt 0:01:01]} Nd4 {[%emt 0:00:10]} 74. Bc8 {[%emt 0:00:15]} h5 {[%emt 0:00:33]} 75. Ra4 {[%emt 0:00:18]} Nc6 {[%emt 0:01:02]} 76. Kf3 {[%emt 0:00:51]} hxg4+ {[%emt 0:00:27]} 77. Kxf4 {[%emt 0:00:09]} Rb5 {[%emt 0:00:34]} 78. Ra6 {[%emt 0:00:13]} Nb4 {[%emt 0:00:29]} 79. Ra7+ {[%emt 0:00:27]} Kf6 {[%emt 0:00:05]} 80. Bxg4 {[%emt 0:00:13]} Nd3+ {[%emt 0:00:11]} 81. Kg3 {[%emt 0:00:08]} Rb3 {[%emt 0:00:07]} 82. Ra6+ {[%emt 0:00:26]} Kg5 {[%emt 0:00:36]} 83. f3 {[%emt 0:00:18]} Ne5 {[%emt 0:00:14]} 84. Ra5 {[%emt 0:00:05]} Kf6 {[%emt 0:00:10]} 85. Bh5 {[%emt 0:00:07]} Kf5 {[%emt 0:00:48]} 86. Bg4+ {[%emt 0:01:55]} Kf6 {[%emt 0:00:05]} 87. Ra6+ {[%emt 0:00:08]} Kg5 {[%emt 0:00:06]} 88. Ra5 {[%emt 0:00:03]} Kf6 {[%emt 0:00:02]} 89. Ra6+ {[%emt 0:00:03]} Kg5 {[%emt 0:00:03]} 90. Ra5 {[%emt 0:00:03]} 1/2-1/2

[Event "GCT Superbet Romania 2024"]
[Site "Bucharest"]
[Date "2024.06.27"]
[Round "2.2"]
[White "Deac, Bogdan-Daniel"]
[Black "Giri, Anish"]
[Result "1/2-1/2"]
[ECO "D19"]
[WhiteElo "2680"]
[BlackElo "2745"]
[Annotator "TA"]
[PlyCount "109"]
[EventDate "2024.06.24"]
[EventType "tourn"]
[EventCountry "ROU"]
[SourceTitle "playchess.com"]
[Source "ChessBase"]
[SourceQuality "1"]
[TimeControl "7200+30"]

{[%evp 30,109,25,26,25,19,36,14,22,25,35,48,40,51,42,51,51,10,6,14,25,18,25,16,21,0,0,-4,31,28,22,33,26,23,27,29,19,22,29,20,22,14,32,20,0,0,0,0,0,0,0,0,0,-13,0,0,0,0,0,0,0,0,0,0,0,0,0,0,0,-8,0,0,0,-2,0,0,0,0,0,0,0,0]} 1. Nf3 {[%emt 0:00:02]} d5 {[%emt 0:00:16]} 2. d4 {[%emt 0:00:12]} Nf6 {[%emt 0:00:07]} 3. c4 {[%emt 0:00:04]} c6 {[%emt 0:00:26]} 4. Nc3 {[%emt 0:00:02]} dxc4 {[%emt 0:00:47]} 5. a4 {[%emt 0:00:13]} Bf5 {[%emt 0:00:18]} 6. e3 {[%emt 0:00:18]} e6 {[%emt 0:00:14]} 7. Bxc4 {[%emt 0:00:04]} Bb4 {[%emt 0:00:12]} 8. O-O {[%emt 0:00:06]} O-O {[%emt 0:00:22]} 9. Qe2 {[%emt 0:00:07]} Bg6 {[%emt 0:02:02]} 10. Ne5 {[%emt 0:00:27]} Nbd7 {[%emt 0:00:09]} 11. Nxg6 {[%emt 0:00:07]} hxg6 {[%emt 0:00:02]} 12. Rd1 {[%emt 0:00:17]} Qc7 $1 {[%emt 0:00:10][%mdl 4] is currently scoring better than 12...Qa5.} 13. Bd2 {[%emt 0:06:53] D19: Slav Defence: 5 a4 Bf5 6 e3: Main line with 9 Qe2.} Rad8 {[%emt 0:11:35]} 14. h3 {[%emt 0:12:22]} Nb6 {[%emt 0:27:30]} 15. Bb3 {[%emt 0:03:35]} a5 {[%emt 0:00:08]} 16. Qd3 $146 {[%emt 0:21:04]} ({Predecessor:} 16. Be1 e5 17. dxe5 Qxe5 18. Rxd8 Rxd8 19. Rd1 Rxd1 20. Qxd1 {½-½ Naumkin,I (2397)-Velten,P (2456) Agneaux St Lo op 18th 2017 (7.1)}) 16... Qe7 {[%emt 0:03:52]} 17. Rac1 {[%emt 0:06:31]} Rfe8 {[%emt 0:20:20]} 18. Qc2 {[%emt 0:24:14]} Rd7 {[%emt 0:02:35]} 19. Nb1 {[%emt 0:17:05]} g5 {[%emt 0:17:08]} 20. Bxb4 {[%emt 0:02:25]} Qxb4 {[%emt 0:00:10]} 21. Nd2 {[%emt 0:00:38]} g4 {[%emt 0:01:16]} 22. hxg4 {[%emt 0:08:32]} Nxg4 {[%emt 0:00:06]} 23. Qc5 {[%emt 0:00:44]} Qxc5 $1 {[%emt 0:02:08]} 24. Rxc5 {[%emt 0:04:14]} Ra8 {[%emt 0:03:28]} 25. Kf1 {[%emt 0:00:55]} g6 {[%emt 0:02:12]} 26. Ke2 {[%emt 0:10:39]} Kg7 {[%emt 0:00:30]} 27. Rg5 {[%emt 0:00:43]} Nf6 {[%emt 0:02:00]} 28. Nf3 {[%emt 0:00:29]} Ne4 {[%emt 0:07:05]} 29. Rg4 {[%emt 0:01:07]} Nf6 {[%emt 0:00:05]} 30. Rh4 {[%emt 0:03:46]} Rdd8 {[%emt 0:04:00]} 31. Ng5 {[%emt 0:01:29]} Rh8 {[%emt 0:01:33]} 32. Rdh1 {[%emt 0:00:40]} Rxh4 {[%emt 0:08:47]} 33. Rxh4 {[%emt 0:00:16]} Nbd7 {[%emt 0:02:22]} 34. e4 {[%emt 0:00:01]} Nf8 $1 {[%emt 0:00:29]} 35. e5 {[%emt 0:00:46]} Ng8 $1 {[%emt 0:00:39]} 36. Rf4 {[%emt 0:03:28]} Nh6 {[%emt 0:00:06]} 37. Bc2 {[%emt 0:02:55]} Rd8 {[%emt 0:01:01]} 38. g4 {[%emt 0:00:11]} Nh7 {[%emt 0:00:51]} 39. Nf3 {[%emt 0:01:21]} Ng8 {[%emt 0:00:46]} 40. Re4 {[%emt 0:00:25]} Ne7 {[%emt 0:00:17]} 41. Bb3 {[%emt 0:00:22]} b5 {[%emt 0:02:48]} 42. Re3 {[%emt 0:00:14]} Rb8 {[%emt 0:00:45]} 43. axb5 {[%emt 0:00:18]} Rxb5 {[%emt 0:00:09]} 44. Kd1 {[%emt 0:00:32]} a4 {[%emt 0:03:20]} 45. Bxa4 {[%emt 0:00:30]} Rxb2 {[%emt 0:00:01]} 46. Bc2 {[%emt 0:00:32]} Rb7 {[%emt 0:00:59]} 47. Rc3 {[%emt 0:01:10]} Kh6 {[%emt 0:00:49]} 48. Ke2 {[%emt 0:00:44]} Rb2 {[%emt 0:01:22]} 49. Kd1 {[%emt 0:00:13]} Rb7 {[%emt 0:01:32]} 50. Ke2 {[%emt 0:00:40]} Rb2 {[%emt 0:00:03]} 51. Kd1 {[%emt 0:00:29]} Rb7 {[%emt 0:02:02]} 52. Ke2 {[%emt 0:00:04]} Rb2 53. Kd1 Rb7 {[%emt 0:00:05]} 54. Ke2 {[%emt 0:00:02]} Rb2 55. Kd1 1/2-1/2

[Event "GCT Superbet Romania 2024"]
[Site "Bucharest"]
[Date "2024.06.27"]
[Round "2.3"]
[White "Caruana, Fabiano"]
[Black "So, Wesley"]
[Result "1/2-1/2"]
[ECO "A20"]
[WhiteElo "2805"]
[BlackElo "2757"]
[Annotator "TA"]
[PlyCount "113"]
[EventDate "2024.06.24"]
[EventType "tourn"]
[EventCountry "ROU"]
[SourceTitle "playchess.com"]
[Source "ChessBase"]
[SourceQuality "1"]
[TimeControl "7200+30"]

{[%evp 48,113,370,363,404,247,262,254,252,260,248,243,260,172,156,168,169,173,147,148,168,160,155,164,168,165,243,186,197,198,170,170,219,55,68,58,54,16,16,0,0,0,0,0,0,0,0,0,0,0,0,0,0,0,0,0,0,0,0,0,0,0,0,0,0,0,0,0]} 1. c4 {[%emt 0:00:04]} e5 {[%emt 0:01:31]} 2. d3 {[%emt 0:00:08]} (2. Nc3 Bb4 3. Nd5 Be7 4. Nf3 d6 5. g3 Nf6 6. Nc3 O-O 7. Bg2 Re8 8. d4 Nc6 9. d5 Nb8 10. O-O a5 11. e4 Na6 12. h3 Nc5 13. Qc2 h6 14. Be3 Nfd7 15. b3 Bg5 16. Nxg5 hxg5 {1-0 Caruana,F (2804)-So,W (2757) American Cup Blitz 2024 (7)}) 2... Nf6 {[%emt 0:03:59]} 3. Nf3 {[%emt 0:00:14]} Nc6 {[%emt 0:00:04]} 4. a3 {[%emt 0:00:05]} g6 {[%emt 0:00:26]} 5. g3 {[%emt 0:02:01]} Bg7 {[%emt 0:00:26]} 6. Bg2 {[%emt 0:00:18] A20: English Opening: 1...e5.} d5 {[%emt 0:06:51]} 7. cxd5 {[%emt 0:00:49]} Nxd5 {[%emt 0:00:04]} 8. O-O {[%emt 0:06:34]} O-O {[%emt 0:00:09]} 9. Bd2 {[%emt 0:08:06]} a5 {[%emt 0:28:37]} 10. Nc3 {[%emt 0:00:33]} Nf6 $146 {[%emt 0:00:25]} ({Predecessor:} 10... Nb6 11. Qc1 Re8 12. Bh6 Nd4 13. Bxg7 Kxg7 14. Nd2 c6 15. e3 Ne6 16. Nc4 Nc5 17. Qc2 {½-½ Ponizil,C (2226)-Krcal,M (2217) CZE-chT2e 0607 2006 (1.1)}) 11. Rc1 {[%emt 0:04:56]} Re8 {[%emt 0:01:03]} 12. Nb5 {[%emt 0:18:01]} h6 {[%emt 0:05:04]} 13. Be3 {[%emt 0:01:00]} Nd5 {[%emt 0:14:44]} 14. Bc5 {[%emt 0:11:38]} Nb8 {[%emt 0:13:24]} 15. e4 {[%emt 0:24:21]} Nf6 {[%emt 0:00:43]} 16. a4 {[%emt 0:00:18]} b6 {[%emt 0:05:09]} 17. Ba3 {[%emt 0:00:36]} Na6 {[%emt 0:09:47]} 18. d4 {[%emt 0:03:12]} Bb7 {[%emt 0:00:33]} 19. Nxe5 {[%emt 0:17:30]} Bxe4 {[%emt 0:01:09]} 20. Bxe4 {[%emt 0:00:27]} Nxe4 {[%emt 0:00:04]} 21. Nxf7 {[%emt 0:01:24]} Qd5 {[%emt 0:17:10]} 22. Ne5 {[%emt 0:00:14]} Ng5 {[%emt 0:00:22]} 23. h4 {[%emt 0:10:06]} Rxe5 {[%emt 0:00:29]} 24. dxe5 {[%emt 0:00:03]} Nf3+ {[%emt 0:00:04]} 25. Kh1 {[%emt 0:00:03]} Qb7 {[%emt 0:00:14]} 26. Rc3 {[%emt 0:06:34]} Nd2+ {[%emt 0:00:14]} 27. Kh2 {[%emt 0:01:44]} Nxf1+ {[%emt 0:00:06]} 28. Qxf1 {[%emt 0:00:03]} Qe4 {[%emt 0:05:16]} 29. f4 {[%emt 0:06:43]} (29. Nxc7 Nxc7 30. Rxc7 Bxe5) 29... Rd8 {[%emt 0:00:03]} 30. Qc4+ {[%emt 0:00:28]} (30. Nxc7 $2 {too greedy.} Rd2+ 31. Kh3 Nxc7 32. Qc4+ (32. Rxc7 $2 Re2 $19) 32... Qd5 $19 (32... Qxc4 $2 33. Rxc4 Nd5 34. b4 $19)) 30... Qxc4 {[%emt 0:00:05]} 31. Rxc4 {[%emt 0:00:01]} c5 {[%emt 0:00:02]} 32. h5 {[%emt 0:01:54]} gxh5 {[%emt 0:00:26]} 33. Re4 {[%emt 0:00:03]} Bf8 {[%emt 0:02:20] [#]} 34. Kg2 $1 {[%emt 0:02:05]} Kf7 {[%emt 0:00:30] [#]} 35. f5 $1 {[%emt 0:00:33]} Be7 {[%emt 0:00:25]} 36. b3 {[%emt 0:01:20]} Nb4 {[%emt 0:06:02]} (36... Rd3 $142 37. Re2 Bg5) 37. Bc1 {[%emt 0:01:08]} Bg5 {[%emt 0:00:19]} 38. Nd6+ {[%emt 0:00:41]} Ke7 {[%emt 0:00:19]} 39. Bf4 {[%emt 0:01:12]} Nc6 {[%emt 0:00:16]} (39... Nc2 {might work better.} 40. Kh3 Nb4) 40. Nb5 $2 {[%emt 0:02:12]} ({Better is} 40. Re3 $18) 40... Nd4 {[%emt 0:01:34]} 41. f6+ {[%emt 0:00:48]} Kf7 $1 {[%emt 0:01:21]} 42. Nxd4 {[%emt 0:00:24]} cxd4 {[%emt 0:02:00]} 43. e6+ {[%emt 0:00:04]} Kxf6 {[%emt 0:00:15]} 44. Bc7 {[%emt 0:00:03]} (44. Bxg5+ hxg5 45. e7 Re8 46. Rxd4 Rxe7 $11) (44. e7 $5 Re8 $8 45. Rxd4 $11) 44... Re8 {[%emt 0:02:31]} 45. Bxb6 {[%emt 0:00:03]} d3 {[%emt 0:00:14]} (45... Rxe6 {simplifies} 46. Bxd4+ Kf5 47. Rxe6 Kxe6 48. Bb6 Bd2) 46. Bxa5 {[%emt 0:00:55]} d2 {[%emt 0:00:55]} (46... Rxe6 {simplifies} 47. Rxe6+ Kxe6 48. Kf3 Kd5) 47. Rd4 {[%emt 0:00:04]} Rxe6 {[%emt 0:00:05]} 48. Kf3 {[%emt 0:01:57]} (48. Bxd2 $2 {perishes.} Re2+ 49. Kh3 Rxd2 $19 (49... Bxd2 $2 50. Rd5 $19)) 48... Re3+ {[%emt 0:00:19]} 49. Kf2 {[%emt 0:00:03]} Rxb3 {[%emt 0:00:07]} 50. Bxd2 {[%emt 0:00:12]} Bxd2 {[%emt 0:01:27]} 51. Rxd2 {[%emt 0:00:05]} Ra3 {[%emt 0:00:03]} 52. Rd4 {[%emt 0:00:25]} Kg5 {[%emt 0:00:07]} 53. Kg2 {[%emt 0:00:07]} Ra1 {[%emt 0:00:18]} 54. Rd5+ {[%emt 0:00:08]} Kg4 {[%emt 0:00:07]} 55. Rd4+ {[%emt 0:00:02]} Kg5 {[%emt 0:00:04]} 56. Rd5+ {[%emt 0:00:03]} Kg4 {[%emt 0:00:03]} 57. Rd4+ {[%emt 0:00:02]} 1/2-1/2

[Event "GCT Superbet Romania 2024"]
[Site "Bucharest"]
[Date "2024.06.27"]
[Round "2.4"]
[White "Praggnanandhaa R"]
[Black "Vachier-Lagrave, Maxime"]
[Result "1/2-1/2"]
[ECO "B31"]
[WhiteElo "2747"]
[BlackElo "2732"]
[Annotator "TA"]
[PlyCount "98"]
[EventDate "2024.06.24"]
[EventType "tourn"]
[EventCountry "ROU"]
[SourceTitle "playchess.com"]
[Source "ChessBase"]
[SourceQuality "1"]
[TimeControl "7200+30"]

{[%evp 17,98,16,20,12,12,10,7,8,8,8,13,15,15,13,22,17,31,38,27,0,8,0,22,18,14,14,16,7,22,21,18,20,18,25,47,18,24,0,0,0,0,0,9,7,7,0,0,0,8,8,8,5,8,10,10,16,18,0,22,5,30,29,31,20,26,20,20,8,8,8,8,0,0,0,0,0,0,0,4,0,0,0,4]} 1. e4 {[%emt 0:00:31]} c5 {[%emt 0:00:04]} 2. Nf3 {[%emt 0:00:07]} Nc6 {[%emt 0:00:03]} 3. Bb5 {[%emt 0:00:10]} g6 {[%emt 0:00:04]} 4. O-O {[%emt 0:00:29]} Bg7 {[%emt 0:00:04]} 5. Bxc6 {[%emt 0:00:13]} bxc6 {[%emt 0:00:06]} 6. Re1 {[%emt 0:01:11]} Qc7 $1 {[%emt 0:00:35][%mdl 4] is recently more successful than 6...Nh6. B31: Sicilian: 2...Nc6 3 Bb5 g6.} 7. d3 {[%emt 0:00:45]} e5 {[%emt 0:01:31]} 8. c3 {[%emt 0:00:12]} Nf6 {[%emt 0:00:34]} 9. d4 {[%emt 0:00:07]} cxd4 {[%emt 0:00:11]} 10. cxd4 {[%emt 0:00:02]} exd4 {[%emt 0:00:06]} 11. Qxd4 {[%emt 0:00:16]} O-O $1 {[%emt 0:00:08]} 12. e5 {[%emt 0:02:50]} Nd5 {[%emt 0:07:30]} 13. Nc3 {[%emt 0:00:15]} Nxc3 {[%emt 0:02:09]} 14. Qxc3 {[%emt 0:00:37]} d5 {[%emt 0:13:45]} 15. h3 {[%emt 0:01:13]} Re8 $146 {[%emt 0:06:36]} ({Predecessor:} 15... Bf5 16. Nd4 Bxe5 17. Rxe5 Qxe5 18. Nxf5 Qxf5 19. Bh6 f6 20. Bxf8 Rxf8 {½-½ Korolev,D (2399)-Eremin,V (2402) Champion's League 2021/A email}) 16. Bf4 {[%emt 0:15:27]} Be6 {[%emt 0:03:11]} 17. Rac1 {[%emt 0:05:44]} Rac8 {[%emt 0:03:13]} 18. Nd4 {[%emt 0:12:58]} Qb7 {[%emt 0:06:46]} ({Much worse is} 18... c5 19. Nb5 Qb6 20. Nd6 $14) 19. Nb3 {[%emt 0:15:17]} d4 {[%emt 0:03:10]} 20. Nxd4 {[%emt 0:01:46]} Bxa2 {[%emt 0:02:18]} 21. Nxc6 {[%emt 0:00:40]} Be6 {[%emt 0:07:18]} 22. Red1 {[%emt 0:06:55]} Bf8 {[%emt 0:08:29]} 23. Qf3 {[%emt 0:11:58]} Qxb2 {[%emt 0:04:42]} 24. Nxa7 {[%emt 0:01:57]} Rxc1 {[%emt 0:01:22]} 25. Rxc1 {[%emt 0:00:09]} Qa3 {[%emt 0:04:54]} 26. Qc6 {[%emt 0:09:55]} (26. Qxa3 {simplifies} Bxa3 27. Rd1 Bb2 28. Nc6) 26... Rb8 {[%emt 0:04:48]} 27. Qc7 {[%emt 0:02:07]} Rb4 {[%emt 0:03:09]} 28. Be3 {[%emt 0:03:39]} Rb3 {[%emt 0:01:04]} 29. Re1 {[%emt 0:12:10]} Rc3 {[%emt 0:02:15]} 30. Qb6 {[%emt 0:00:39]} Rb3 {[%emt 0:02:02]} 31. Qc7 {[%emt 0:01:36]} Rc3 {[%emt 0:00:54]} 32. Qb6 {[%emt 0:04:56]} Rb3 {[%emt 0:00:42]} 33. Qd4 {[%emt 0:00:11]} Rd3 {[%emt 0:02:54]} 34. Qa1 {[%emt 0:03:29]} Qxa1 {[%emt 0:07:11]} 35. Rxa1 {[%emt 0:00:38]} h6 {[%emt 0:04:52]} 36. Nc6 {[%emt 0:01:28]} Bd5 {[%emt 0:03:59]} 37. Ra6 {[%emt 0:04:06]} Ra3 {[%emt 0:02:25]} 38. Rb6 {[%emt 0:01:32]} Rb3 {[%emt 0:00:12]} 39. Rxb3 {[%emt 0:01:39]} Bxb3 {[%emt 0:00:10]} 40. Nd4 {[%emt 0:00:02]} Bc4 {[%emt 0:01:53]} 41. g4 {[%emt 0:01:31]} h5 {[%emt 0:03:18]} 42. gxh5 {[%emt 0:00:33]} gxh5 {[%emt 0:00:08]} 43. Kg2 {[%emt 0:00:06]} Kh7 {[%emt 0:01:56]} 44. Kg3 {[%emt 0:01:00]} Kg6 {[%emt 0:00:51]} 45. f4 {[%emt 0:00:05]} Be6 {[%emt 0:02:13]} 46. Kg2 {[%emt 0:04:01]} Bd7 {[%emt 0:00:53]} 47. Kg3 {[%emt 0:00:06]} Be6 {[%emt 0:00:06]} 48. Kg2 {[%emt 0:00:04]} Bd7 {[%emt 0:00:03]} 49. Kg3 {[%emt 0:00:03]} Be6 {[%emt 0:00:17]} 1/2-1/2

[Event "GCT Superbet Romania 2024"]
[Site "Bucharest"]
[Date "2024.06.27"]
[Round "2.5"]
[White "Firouzja, Alireza"]
[Black "Abdusattorov, Nodirbek"]
[Result "1-0"]
[ECO "D10"]
[WhiteElo "2737"]
[BlackElo "2766"]
[Annotator "TA"]
[PlyCount "75"]
[EventDate "2024.06.24"]
[EventType "tourn"]
[EventCountry "ROU"]
[SourceTitle "playchess.com"]
[Source "ChessBase"]
[SourceQuality "1"]
[TimeControl "7200+30"]

{[%evp 9,75,7,18,8,14,13,20,5,23,18,13,7,18,23,25,2,0,-6,1,-14,-2,-12,-8,-11,-14,-14,-16,-9,42,0,65,66,96,101,116,104,87,102,172,160,157,163,187,148,153,148,156,108,278,272,275,275,262,279,279,242,368,331,397,398,488,491,505,482,547,573,822,859]} 1. d4 {[%emt 0:00:02]} d5 {[%emt 0:00:30]} 2. c4 {[%emt 0:00:06]} c6 {[%emt 0:00:16]} 3. cxd5 {[%emt 0:02:31]} cxd5 {[%emt 0:00:08]} 4. Bf4 {[%emt 0:00:09]} Nf6 {[%emt 0:01:13]} 5. e3 {[%emt 0:00:35]} Nc6 {[%emt 0:00:22]} 6. Bb5 {[%emt 0:07:45]} Bd7 {[%emt 0:02:56]} 7. Nc3 {[%emt 0:01:20]} a6 {[%emt 0:02:12]} 8. Be2 {[%emt 0:04:35] The position is equal.} e6 {[%emt 0:08:33]} 9. Nf3 {[%emt 0:01:11]} Be7 {[%emt 0:00:07]} 10. h3 {[%emt 0:01:16]} O-O {[%emt 0:01:39]} 11. O-O {[%emt 0:00:15]} Qb6 {[%emt 0:02:06]} 12. a3 {[%emt 0:21:14]} Rfc8 {[%emt 0:03:09]} 13. Na4 {[%emt 0:08:59]} Qa7 {[%emt 0:01:29]} 14. b4 {[%emt 0:07:43]} b6 {[%emt 0:04:26]} 15. Qb3 {[%emt 0:03:01]} Ne4 {[%emt 0:02:51]} 16. Bd3 {[%emt 0:05:14]} Qb7 {[%emt 0:08:29]} 17. Bxe4 {[%emt 0:03:40]} dxe4 {[%emt 0:00:43]} 18. Nd2 {[%emt 0:00:19][%cal Oa4c3]} b5 {[%emt 0:22:51]} (18... Na7 $11) 19. Nc3 {[%emt 0:22:21]} a5 {[%emt 0:01:21]} (19... f5 $11) 20. Ncxe4 {[%emt 0:01:17]} Ra6 {[%emt 0:18:20][%cal Ra5b4]} 21. Nc5 {[%emt 0:08:06] White is more active.} Bxc5 {[%emt 0:00:08]} 22. bxc5 {[%emt 0:00:46]} ({Of course not} 22. dxc5 $6 Rca8 $11) 22... e5 {[%emt 0:00:06]} 23. dxe5 {[%emt 0:00:49]} Be6 {[%emt 0:01:27] [#]} (23... Nd8 $16) 24. Qb2 $1 $18 {[%emt 0:01:59]} b4 {[%emt 0:00:13]} 25. Ne4 {[%emt 0:02:16] Threatens to win with Nd6.} Rb8 {[%emt 0:01:07]} 26. a4 {[%emt 0:02:24]} b3 {[%emt 0:07:32]} 27. Nd6 {[%emt 0:05:50]} Qa7 {[%emt 0:01:16]} 28. Rfc1 {[%emt 0:03:08]} (28. Qc3 $142) 28... Rb4 $2 {[%emt 0:13:05] [#] This move loses the game for Black.} (28... Nb4 $16) 29. e4 {[%emt 0:01:27]} Nd4 {[%emt 0:08:31]} 30. Be3 {[%emt 0:00:47]} Nc2 {[%emt 0:00:06]} 31. Rxc2 {[%emt 0:00:07]} bxc2 {[%emt 0:00:04]} 32. Qxc2 {[%emt 0:00:05]} Qd7 {[%emt 0:00:06]} (32... h6 $142 33. f4 (33. c6 Qc7 $18) 33... Qa8) 33. Bd2 {[%emt 0:02:15]} Rb8 {[%emt 0:02:57]} 34. f4 {[%emt 0:00:35]} Bxh3 {[%emt 0:02:33]} 35. gxh3 {[%emt 0:03:04] White is clearly winning.} ({Resist} 35. Qd3 Rc6 36. Qxh3 Qxh3 37. gxh3 Rxc5 $18) 35... Qxh3 {[%emt 0:00:04]} 36. Qc3 {[%emt 0:00:08] Dodges Qg3+} Qg4+ {[%emt 0:00:10]} 37. Kf2 {[%emt 0:00:04]} Rc6 {[%emt 0:00:05]} 38. Nf5 {[%emt 0:01:39] Wards off Qh4+.   Weighted Error Value: White=0.07 (flawless) /Black=0.36.  Loses game:     	---       	Black=1      Mistake:       	White=1     	Black=4      Inaccurate:     	White=1     	Black=2      OK:         	White=15    	Black=13     Best:        	White=1     	Black=1} 1-0